[Event "Early-Titled-Tuesday-Blitz-October-03-2023"]
[Site "Chess.com"]
[Date "2023.10.03"]
[Round "5"]
[White "Predator0608"]
[Black "tylityli"]
[Result "0-1"]
[WhiteElo "2462"]
[BlackElo "2351"]
[TimeControl "180+1"]
[EndTime "8:57:31 PDT"]
[Termination "tylityli won by resignation"]

1. e4 {[%clk 0:02:57.4]} 1... e5 {[%clk 0:02:41.9]} 2. Nf3 {[%clk 0:02:52.5]}
2... Nc6 {[%clk 0:02:40.7]} 3. Bc4 {[%clk 0:02:52.4]} 3... Nf6 {[%clk
0:02:40.4]} 4. d3 {[%clk 0:02:51.9]} 4... Be7 {[%clk 0:02:40.2]} 5. c3 {[%clk
0:02:51.7]} 5... O-O {[%clk 0:02:39.4]} 6. Bb3 {[%clk 0:02:50.6]} 6... d5 {[%clk
0:02:39.1]} 7. Qe2 {[%clk 0:02:50.6]} 7... Be6 {[%clk 0:02:34]} 8. Nbd2 {[%clk
0:02:50.2]} 8... dxe4 {[%clk 0:02:33.3]} 9. dxe4 {[%clk 0:02:51.1]} 9... Bxb3
{[%clk 0:02:33.1]} 10. axb3 {[%clk 0:02:50]} 10... a5 {[%clk 0:02:31.6]} 11. O-O
{[%clk 0:02:39.6]} 11... h6 {[%clk 0:02:30.5]} 12. Rd1 {[%clk 0:02:39.1]} 12...
Qc8 {[%clk 0:02:30.1]} 13. Nh4 {[%clk 0:02:32.6]} 13... g6 {[%clk 0:02:25.8]}
14. Nf1 {[%clk 0:02:28.2]} 14... Qg4 {[%clk 0:02:17.3]} 15. Qxg4 {[%clk
0:02:15.9]} 15... Nxg4 {[%clk 0:02:15.9]} 16. Nf3 {[%clk 0:02:13]} 16... Bc5
{[%clk 0:02:13.3]} 17. Ne3 {[%clk 0:02:07.4]} 17... Bxe3 {[%clk 0:02:11]} 18.
Bxe3 {[%clk 0:02:08.3]} 18... Nxe3 {[%clk 0:02:10.5]} 19. fxe3 {[%clk
0:02:09.2]} 19... Rad8 {[%clk 0:02:10.1]} 20. Rd5 {[%clk 0:02:05.8]} 20... f6
{[%clk 0:02:04.6]} 21. Kf2 {[%clk 0:02:01.7]} 21... Kf7 {[%clk 0:01:58.8]} 22.
Rad1 {[%clk 0:01:58.8]} 22... Ke6 {[%clk 0:01:58.1]} 23. Nh4 {[%clk 0:01:56.3]}
23... Rg8 {[%clk 0:01:51.8]} 24. Rxd8 {[%clk 0:01:37]} 24... Nxd8 {[%clk
0:01:50.6]} 25. Nxg6 {[%clk 0:01:37.1]} 25... Nc6 {[%clk 0:01:38.2]} 26. Nh4
{[%clk 0:01:35.9]} 26... Rg4 {[%clk 0:01:37.6]} 27. Nf3 {[%clk 0:01:31.4]} 27...
Rxe4 {[%clk 0:01:33.2]} 28. h3 {[%clk 0:01:30.9]} 28... f5 {[%clk 0:01:26]} 29.
Re1 {[%clk 0:00:54.1]} 29... f4 {[%clk 0:01:13.2]} 30. g4 {[%clk 0:00:43.6]}
30... fxe3+ {[%clk 0:01:02.3]} 31. Rxe3 {[%clk 0:00:44.5]} 31... Rf4 {[%clk
0:01:02.2]} 32. Kg3 {[%clk 0:00:44.5]} 32... Rf7 {[%clk 0:00:54.4]} 33. Nd4+
{[%clk 0:00:34.3]} 33... Kd5 {[%clk 0:00:47.7]} 34. Nf5 {[%clk 0:00:27.7]} 34...
h5 {[%clk 0:00:47.4]} 35. Rd3+ {[%clk 0:00:26.2]} 35... Ke6 {[%clk 0:00:40.7]}
36. Re3 {[%clk 0:00:26.4]} 36... Kd5 {[%clk 0:00:36.8]} 37. Re1 {[%clk
0:00:24.6]} 37... e4 {[%clk 0:00:33.7]} 38. Rd1+ {[%clk 0:00:23.5]} 38... Ke5
{[%clk 0:00:32.4]} 39. Re1 {[%clk 0:00:17.6]} 39... Rd7 {[%clk 0:00:29.5]} 40.
Kh4 {[%clk 0:00:16.9]} 40... hxg4 {[%clk 0:00:28.5]} 41. hxg4 {[%clk 0:00:17.7]}
41... Kf4 {[%clk 0:00:25.9]} 42. Rf1+ {[%clk 0:00:18.1]} 42... Ke5 {[%clk
0:00:25.4]} 43. Kg5 {[%clk 0:00:19]} 43... Rd2 {[%clk 0:00:23]} 44. Kg6 {[%clk
0:00:13.6]} 44... Rxb2 {[%clk 0:00:22.4]} 45. g5 {[%clk 0:00:14]} 45... Rg2
{[%clk 0:00:16.8]} 46. Re1 {[%clk 0:00:11.7]} 46... b5 {[%clk 0:00:13.1]} 47.
Nh4 {[%clk 0:00:10.8]} 47... Rg4 {[%clk 0:00:12.6]} 48. Kh5 {[%clk 0:00:11]}
48... Rg3 {[%clk 0:00:11]} 49. g6 {[%clk 0:00:11.6]} 49... Ne7 {[%clk
0:00:10.4]} 50. Kh6 {[%clk 0:00:09.5]} 50... Nxg6 {[%clk 0:00:09.9]} 51. Nxg6+
{[%clk 0:00:09.3]} 51... Kf6 {[%clk 0:00:07.9]} 52. Ne7 {[%clk 0:00:09.8]} 52...
Kxe7 {[%clk 0:00:07.3]} 53. Rxe4+ {[%clk 0:00:09.5]} 53... Kd6 {[%clk
0:00:07.5]} 54. c4 {[%clk 0:00:09.5]} 54... bxc4 {[%clk 0:00:07.3]} 55. bxc4
{[%clk 0:00:08.6]} 55... a4 {[%clk 0:00:07.3]} 56. c5+ {[%clk 0:00:09.1]} 56...
Kxc5 {[%clk 0:00:07.5]} 57. Rxa4 {[%clk 0:00:10]} 57... c6 {[%clk 0:00:07.5]}
58. Kh5 {[%clk 0:00:09.8]} 58... Kb5 {[%clk 0:00:07.4]} 59. Re4 {[%clk
0:00:08.2]} 59... c5 {[%clk 0:00:07.6]} 60. Kh4 {[%clk 0:00:08.5]} 60... Rg8
{[%clk 0:00:07.8]} 61. Kh3 {[%clk 0:00:08.6]} 61... c4 {[%clk 0:00:08]} 62. Kh2
{[%clk 0:00:05.1]} 62... Kb4 {[%clk 0:00:08.3]} 63. Re3 {[%clk 0:00:05]} 63...
c3 {[%clk 0:00:08.4]} 64. Kh3 {[%clk 0:00:05.6]} 64... Kb3 {[%clk 0:00:08.2]}
65. Kh4 {[%clk 0:00:05.7]} 65... Kb2 {[%clk 0:00:08]} 66. Re7 {[%clk 0:00:05.1]}
66... c2 {[%clk 0:00:07.9]} 67. Rb7+ {[%clk 0:00:05.6]} 67... Kc1 {[%clk
0:00:08]} 68. Rf7 {[%clk 0:00:06.2]} 68... Rd8 {[%clk 0:00:06.3]} 69. Rc7 {[%clk
0:00:06.3]} 69... Kd2 {[%clk 0:00:06.3]} 0-1

[Event "Early-Titled-Tuesday-Blitz-October-03-2023"]
[Site "Chess.com"]
[Date "2023.10.03"]
[Round "5"]
[White "Ranindu2003"]
[Black "elmusmolamas"]
[Result "0-1"]
[WhiteElo "2716"]
[BlackElo "2542"]
[TimeControl "180+1"]
[EndTime "8:57:42 PDT"]
[Termination "elmusmolamas won by resignation"]

1. e4 {[%clk 0:03:00.9]} 1... c5 {[%clk 0:02:58]} 2. c3 {[%clk 0:03:01.5]} 2...
Nf6 {[%clk 0:02:56.7]} 3. e5 {[%clk 0:03:02]} 3... Nd5 {[%clk 0:02:57.3]} 4. Nf3
{[%clk 0:03:02.9]} 4... e6 {[%clk 0:02:55.3]} 5. d4 {[%clk 0:03:01.6]} 5... cxd4
{[%clk 0:02:52.4]} 6. cxd4 {[%clk 0:03:02.5]} 6... Nc6 {[%clk 0:02:49.8]} 7. Bd3
{[%clk 0:03:01.8]} 7... d6 {[%clk 0:02:50.1]} 8. Nc3 {[%clk 0:02:55.7]} 8...
dxe5 {[%clk 0:02:43.6]} 9. dxe5 {[%clk 0:02:50.1]} 9... Ndb4 {[%clk 0:02:40.4]}
10. Be4 {[%clk 0:02:50.2]} 10... Qxd1+ {[%clk 0:02:38.6]} 11. Kxd1 {[%clk
0:02:50.2]} 11... Bc5 {[%clk 0:02:31.7]} 12. a3 {[%clk 0:02:47.5]} 12... Nd5
{[%clk 0:02:26.8]} 13. Nxd5 {[%clk 0:02:43.9]} 13... exd5 {[%clk 0:02:27.7]} 14.
Bxd5 {[%clk 0:02:44.8]} 14... O-O {[%clk 0:02:22.5]} 15. Ke2 {[%clk 0:02:25]}
15... Bg4 {[%clk 0:02:11.3]} 16. Bxc6 {[%clk 0:02:22.3]} 16... bxc6 {[%clk
0:02:10.9]} 17. Be3 {[%clk 0:02:17.6]} 17... Bxe3 {[%clk 0:01:54.7]} 18. Kxe3
{[%clk 0:02:18.5]} 18... Rfb8 {[%clk 0:01:55]} 19. b4 {[%clk 0:02:01.8]} 19...
a5 {[%clk 0:01:54.9]} 20. Nd4 {[%clk 0:02:00.3]} 20... Bd7 {[%clk 0:01:43.2]}
21. Rhc1 {[%clk 0:01:53.9]} 21... g6 {[%clk 0:01:35.2]} 22. Rab1 {[%clk
0:01:53.5]} 22... axb4 {[%clk 0:01:33.9]} 23. axb4 {[%clk 0:01:54.4]} 23... Ra3+
{[%clk 0:01:31]} 24. Ke4 {[%clk 0:01:51.8]} 24... Ra2 {[%clk 0:01:31.6]} 25. Kf3
{[%clk 0:01:25.9]} 25... Ra3+ {[%clk 0:01:22.9]} 26. Kf4 {[%clk 0:01:23.7]}
26... Ra2 {[%clk 0:01:23.2]} 27. Kg3 {[%clk 0:01:22.5]} 27... Ra3+ {[%clk
0:01:09.6]} 28. f3 {[%clk 0:01:22.3]} 28... Re8 {[%clk 0:00:51]} 29. Nxc6 {[%clk
0:01:06.2]} 29... Bxc6 {[%clk 0:00:51.5]} 30. Rxc6 {[%clk 0:01:07.1]} 30... Rxe5
{[%clk 0:00:52.2]} 31. b5 {[%clk 0:01:07.7]} 31... Rg5+ {[%clk 0:00:51.5]} 32.
Kh3 {[%clk 0:01:03.9]} 32... Rh5+ {[%clk 0:00:32.5]} 33. Kg4 {[%clk 0:01:02]}
33... Ra4+ {[%clk 0:00:27]} 34. f4 {[%clk 0:01:02]} 34... f5+ {[%clk 0:00:22.9]}
35. Kg3 {[%clk 0:00:59.5]} 35... Ra3+ {[%clk 0:00:21.8]} 36. Kf2 {[%clk
0:01:00.2]} 36... Rxh2 {[%clk 0:00:17.5]} 37. Rb2 {[%clk 0:00:59.1]} 37... Rh4
{[%clk 0:00:15.3]} 38. Rc4 {[%clk 0:00:55.6]} 38... Ra7 {[%clk 0:00:05.2]} 39.
b6 {[%clk 0:00:52.7]} 39... Rb7 {[%clk 0:00:05.9]} 40. Kf3 {[%clk 0:00:49.9]}
40... Rh1 {[%clk 0:00:05]} 41. Ke3 {[%clk 0:00:35.3]} 41... Re1+ {[%clk
0:00:05.2]} 42. Kd3 {[%clk 0:00:31.9]} 42... Re6 {[%clk 0:00:04]} 43. Kd4 {[%clk
0:00:23]} 43... Rexb6 {[%clk 0:00:03.6]} 44. Rbc2 {[%clk 0:00:17.3]} 44... Kg7
{[%clk 0:00:04.2]} 45. Ke5 {[%clk 0:00:16.9]} 45... Re7+ {[%clk 0:00:04.1]} 46.
Kd4 {[%clk 0:00:16.9]} 46... Rbe6 {[%clk 0:00:04.8]} 47. Kd5 {[%clk 0:00:13.6]}
47... Re4 {[%clk 0:00:03.2]} 48. Rxe4 {[%clk 0:00:13]} 48... Rxe4 {[%clk
0:00:04.1]} 49. g3 {[%clk 0:00:12.1]} 49... Re3 {[%clk 0:00:04]} 50. Rg2 {[%clk
0:00:11.9]} 50... h5 {[%clk 0:00:04.1]} 51. Kd4 {[%clk 0:00:12.8]} 51... Re4+
{[%clk 0:00:03.9]} 52. Kd3 {[%clk 0:00:13.3]} 52... Kh6 {[%clk 0:00:04.5]} 53.
Rc2 {[%clk 0:00:11.3]} 53... Ra4 {[%clk 0:00:03.3]} 54. Ke3 {[%clk 0:00:11.3]}
54... Ra3+ {[%clk 0:00:03.7]} 55. Kf2 {[%clk 0:00:12]} 55... Ra6 {[%clk
0:00:02.3]} 56. Kg2 {[%clk 0:00:12.6]} 56... Rf6 {[%clk 0:00:03]} 57. Kh3 {[%clk
0:00:12.9]} 57... Kg7 {[%clk 0:00:03.7]} 58. Kh4 {[%clk 0:00:13.1]} 58... Kh6
{[%clk 0:00:04.6]} 59. Rc8 {[%clk 0:00:12.7]} 59... Re6 {[%clk 0:00:04.9]} 60.
Rh8+ {[%clk 0:00:12.7]} 60... Kg7 {[%clk 0:00:05.7]} 61. Rd8 {[%clk 0:00:13.1]}
61... Re3 {[%clk 0:00:05.8]} 62. Rb8 {[%clk 0:00:08.2]} 62... Ra3 {[%clk
0:00:04.6]} 63. Rb6 {[%clk 0:00:08.4]} 63... Rc3 {[%clk 0:00:03.7]} 64. Rb1
{[%clk 0:00:08.8]} 64... Rd3 {[%clk 0:00:01.9]} 65. Rg1 {[%clk 0:00:09.4]} 65...
Ra3 {[%clk 0:00:02.7]} 66. Kg5 {[%clk 0:00:09.8]} 66... Kf7 {[%clk 0:00:02.4]}
67. Rg2 {[%clk 0:00:10.1]} 67... Re3 {[%clk 0:00:02.9]} 68. Kh6 {[%clk
0:00:10.6]} 68... Kf6 {[%clk 0:00:02.3]} 69. Kh7 {[%clk 0:00:09]} 69... Re7+
{[%clk 0:00:02.6]} 70. Kh6 {[%clk 0:00:09.3]} 70... Re8 {[%clk 0:00:03.5]} 71.
Kh7 {[%clk 0:00:09.6]} 71... Re7+ {[%clk 0:00:04.4]} 72. Kh6 {[%clk 0:00:09.7]}
72... Re3 {[%clk 0:00:05.3]} 73. Kh7 {[%clk 0:00:09]} 73... g5 {[%clk
0:00:06.1]} 74. Kh6 {[%clk 0:00:07]} 74... g4 {[%clk 0:00:05.8]} 75. Kxh5 {[%clk
0:00:07.1]} 75... Re8 {[%clk 0:00:06.6]} 0-1

[Event "Early-Titled-Tuesday-Blitz-October-03-2023"]
[Site "Chess.com"]
[Date "2023.10.03"]
[Round "5"]
[White "kleinebeer98"]
[Black "Indianlad"]
[Result "1/2-1/2"]
[WhiteElo "2823"]
[BlackElo "3026"]
[TimeControl "180+1"]
[EndTime "8:58:16 PDT"]
[Termination "Game drawn by stalemate"]

1. e4 {[%clk 0:03:00.9]} 1... c6 {[%clk 0:02:59.3]} 2. d4 {[%clk 0:03:00.5]}
2... d5 {[%clk 0:02:59.3]} 3. f3 {[%clk 0:03:01.4]} 3... g6 {[%clk 0:02:57.2]}
4. Nc3 {[%clk 0:03:01.5]} 4... Bg7 {[%clk 0:02:57.4]} 5. Be3 {[%clk 0:03:02.3]}
5... Qb6 {[%clk 0:02:57.5]} 6. a3 {[%clk 0:03:02.9]} 6... Nf6 {[%clk 0:02:39]}
7. e5 {[%clk 0:03:00.6]} 7... Ng8 {[%clk 0:02:37.5]} 8. f4 {[%clk 0:02:51.3]}
8... h5 {[%clk 0:02:37.5]} 9. Nf3 {[%clk 0:02:45.2]} 9... Bg4 {[%clk 0:02:36.2]}
10. b4 {[%clk 0:02:12.6]} 10... Nh6 {[%clk 0:02:33.8]} 11. h3 {[%clk 0:02:00.8]}
11... Nf5 {[%clk 0:02:32.1]} 12. Bf2 {[%clk 0:01:54.1]} 12... Bxf3 {[%clk
0:02:32.4]} 13. Qxf3 {[%clk 0:01:55]} 13... h4 {[%clk 0:02:28.3]} 14. Bd3 {[%clk
0:01:48.6]} 14... e6 {[%clk 0:02:28.7]} 15. O-O {[%clk 0:01:44.4]} 15... Nd7
{[%clk 0:02:27.1]} 16. Na4 {[%clk 0:01:43.1]} 16... Qd8 {[%clk 0:02:26.9]} 17.
Nc5 {[%clk 0:01:40.7]} 17... Nxc5 {[%clk 0:02:26.8]} 18. dxc5 {[%clk 0:01:35.8]}
18... Qe7 {[%clk 0:01:48]} 19. Rad1 {[%clk 0:01:29.9]} 19... Rd8 {[%clk
0:01:47.3]} 20. Rb1 {[%clk 0:01:15.9]} 20... O-O {[%clk 0:01:41.2]} 21. Qg4
{[%clk 0:01:11.8]} 21... Ng3 {[%clk 0:01:25.5]} 22. Bxg3 {[%clk 0:01:06.1]}
22... hxg3 {[%clk 0:01:26.4]} 23. Qxg3 {[%clk 0:01:07]} 23... b6 {[%clk
0:01:27]} 24. h4 {[%clk 0:01:01.1]} 24... bxc5 {[%clk 0:01:26.5]} 25. bxc5
{[%clk 0:00:59.3]} 25... Qxc5+ {[%clk 0:01:26.2]} 26. Kh2 {[%clk 0:00:56.9]}
26... Qe7 {[%clk 0:01:16.1]} 27. h5 {[%clk 0:00:53.2]} 27... gxh5 {[%clk
0:01:15.9]} 28. f5 {[%clk 0:00:53.9]} 28... f6 {[%clk 0:01:08.9]} 29. Qg6 {[%clk
0:00:35]} 29... fxe5 {[%clk 0:00:57.5]} 30. f6 {[%clk 0:00:33.6]} 30... Rxf6
{[%clk 0:00:58.2]} 31. Rxf6 {[%clk 0:00:34]} 31... Qxf6 {[%clk 0:00:47.1]} 32.
Qh7+ {[%clk 0:00:33.9]} 32... Kf7 {[%clk 0:00:47.8]} 33. Rf1 {[%clk 0:00:30.6]}
33... e4 {[%clk 0:00:47.7]} 34. Rxf6+ {[%clk 0:00:16.8]} 34... Kxf6 {[%clk
0:00:48.6]} 35. Bxe4 {[%clk 0:00:17.5]} 35... dxe4 {[%clk 0:00:47.7]} 36. Qxe4
{[%clk 0:00:18.4]} 36... Rd5 {[%clk 0:00:46.2]} 37. c4 {[%clk 0:00:19]} 37...
Rf5 {[%clk 0:00:38.6]} 38. Qxc6 {[%clk 0:00:18.7]} 38... Bf8 {[%clk 0:00:39.3]}
39. a4 {[%clk 0:00:12.4]} 39... a5 {[%clk 0:00:40]} 40. Qc7 {[%clk 0:00:10.9]}
40... Rc5 {[%clk 0:00:36.6]} 41. Qd8+ {[%clk 0:00:11.3]} 41... Kf7 {[%clk
0:00:37.4]} 42. Qd3 {[%clk 0:00:10.3]} 42... Rf5 {[%clk 0:00:34.4]} 43. Kh3
{[%clk 0:00:09.7]} 43... Be7 {[%clk 0:00:34.9]} 44. Qe4 {[%clk 0:00:08.6]} 44...
Kf6 {[%clk 0:00:33.4]} 45. g4 {[%clk 0:00:08.1]} 45... hxg4+ {[%clk 0:00:33.4]}
46. Kxg4 {[%clk 0:00:09]} 46... Kf7 {[%clk 0:00:29.8]} 47. Qc2 {[%clk
0:00:05.1]} 47... Bd6 {[%clk 0:00:29.3]} 48. Qc1 {[%clk 0:00:04.4]} 48... Ke7
{[%clk 0:00:28.9]} 49. Qh6 {[%clk 0:00:04.8]} 49... Kd7 {[%clk 0:00:28.4]} 50.
Qg6 {[%clk 0:00:03.9]} 50... Rf4+ {[%clk 0:00:26.8]} 51. Kh3 {[%clk 0:00:04.4]}
51... Rxc4 {[%clk 0:00:25.5]} 52. Qf7+ {[%clk 0:00:04.3]} 52... Be7 {[%clk
0:00:25.7]} 53. Qf3 {[%clk 0:00:04.8]} 53... Rc5 {[%clk 0:00:26.2]} 54. Qb7+
{[%clk 0:00:04.1]} 54... Ke8 {[%clk 0:00:25.2]} 55. Qf3 {[%clk 0:00:04.8]} 55...
Rd5 {[%clk 0:00:24.9]} 56. Qe4 {[%clk 0:00:04.8]} 56... Kd7 {[%clk 0:00:25]} 57.
Kg4 {[%clk 0:00:05.3]} 57... Bc5 {[%clk 0:00:24.1]} 58. Qh7+ {[%clk 0:00:05.8]}
58... Kd6 {[%clk 0:00:24.7]} 59. Qg8 {[%clk 0:00:05.9]} 59... Ke5 {[%clk
0:00:22]} 60. Qf7 {[%clk 0:00:04.9]} 60... Rd4+ {[%clk 0:00:19.3]} 61. Kf3
{[%clk 0:00:05.5]} 61... Bb4 {[%clk 0:00:17.8]} 62. Qg7+ {[%clk 0:00:04.8]}
62... Kd5 {[%clk 0:00:18.5]} 63. Qd7+ {[%clk 0:00:05.4]} 63... Ke5 {[%clk
0:00:19.2]} 64. Qg7+ {[%clk 0:00:05.7]} 64... Kd5 {[%clk 0:00:19.9]} 65. Ke3
{[%clk 0:00:06.4]} 65... Bc5 {[%clk 0:00:16.8]} 66. Qb7+ {[%clk 0:00:03.4]}
66... Kc4 {[%clk 0:00:16]} 67. Qb5+ {[%clk 0:00:03.2]} 67... Kd5 {[%clk
0:00:16.7]} 68. Kf3 {[%clk 0:00:02.3]} 68... e5 {[%clk 0:00:16]} 69. Qxa5 {[%clk
0:00:02.9]} 69... Rf4+ {[%clk 0:00:16.4]} 70. Ke2 {[%clk 0:00:03.1]} 70... Rf2+
{[%clk 0:00:14.5]} 71. Kd3 {[%clk 0:00:03]} 71... e4+ {[%clk 0:00:14.6]} 72. Kc3
{[%clk 0:00:03.7]} 72... e3 {[%clk 0:00:14.3]} 73. Qa8+ {[%clk 0:00:04]} 73...
Kd6 {[%clk 0:00:14.3]} 74. Qd8+ {[%clk 0:00:04]} 74... Kc6 {[%clk 0:00:14.4]}
75. Qc8+ {[%clk 0:00:03.8]} 75... Kd6 {[%clk 0:00:15]} 76. Qb8+ {[%clk
0:00:03.9]} 76... Kc6 {[%clk 0:00:15.4]} 77. Qb5+ {[%clk 0:00:04.3]} 77... Kd6
{[%clk 0:00:15.8]} 78. Qd3+ {[%clk 0:00:04.5]} 78... Kc6 {[%clk 0:00:16.2]} 79.
Qe4+ {[%clk 0:00:05]} 79... Kd6 {[%clk 0:00:16.5]} 80. Kc4 {[%clk 0:00:04.6]}
80... Bb6 {[%clk 0:00:10.3]} 81. Kb5 {[%clk 0:00:04.1]} 81... Rb2+ {[%clk
0:00:08.9]} 82. Ka6 {[%clk 0:00:04.8]} 82... e2 {[%clk 0:00:09.2]} 83. a5 {[%clk
0:00:05.6]} 83... Bc5 {[%clk 0:00:06.5]} 84. Qg6+ {[%clk 0:00:05.5]} 84... Kd5
{[%clk 0:00:06.6]} 85. Qf5+ {[%clk 0:00:04.3]} 85... Kc6 {[%clk 0:00:07.2]} 86.
Qf6+ {[%clk 0:00:04.5]} 86... Kc7 {[%clk 0:00:07.2]} 87. Qe5+ {[%clk 0:00:04.1]}
87... Kc6 {[%clk 0:00:07.8]} 88. Qe6+ {[%clk 0:00:03.3]} 88... Kc7 {[%clk
0:00:08.5]} 89. Qe5+ {[%clk 0:00:03.3]} 89... Kc6 {[%clk 0:00:09.3]} 90. Qe4+
{[%clk 0:00:03.5]} 90... Kc7 {[%clk 0:00:09.6]} 91. Qb7+ {[%clk 0:00:02.5]}
91... Rxb7 {[%clk 0:00:08.2]} 1/2-1/2

[Event "Early-Titled-Tuesday-Blitz-October-03-2023"]
[Site "Chess.com"]
[Date "2023.10.03"]
[Round "5"]
[White "Mikhail_Golubev"]
[Black "Cheer_Down"]
[Result "1-0"]
[WhiteElo "2602"]
[BlackElo "2415"]
[TimeControl "180+1"]
[EndTime "8:58:21 PDT"]
[Termination "Mikhail_Golubev won by checkmate"]

1. e4 {[%clk 0:02:52.2]} 1... c5 {[%clk 0:02:59.9]} 2. Nf3 {[%clk 0:02:50.9]}
2... d6 {[%clk 0:03:00.1]} 3. d4 {[%clk 0:02:49.2]} 3... cxd4 {[%clk 0:03:01]}
4. Nxd4 {[%clk 0:02:49.6]} 4... Nf6 {[%clk 0:03:00.8]} 5. Nc3 {[%clk 0:02:49.7]}
5... a6 {[%clk 0:03:01.2]} 6. Bc4 {[%clk 0:02:49.3]} 6... e6 {[%clk 0:03:00.7]}
7. Bb3 {[%clk 0:02:49.3]} 7... Nc6 {[%clk 0:02:55.1]} 8. Be3 {[%clk 0:02:47.1]}
8... Be7 {[%clk 0:02:46.6]} 9. Qe2 {[%clk 0:02:46.3]} 9... O-O {[%clk
0:02:36.1]} 10. O-O-O {[%clk 0:02:43]} 10... Nxd4 {[%clk 0:02:32.9]} 11. Bxd4
{[%clk 0:02:41.9]} 11... b5 {[%clk 0:02:33.1]} 12. g4 {[%clk 0:02:14.4]} 12...
b4 {[%clk 0:02:32]} 13. Na4 {[%clk 0:02:11.9]} 13... Bd7 {[%clk 0:02:31.6]} 14.
g5 {[%clk 0:01:59.6]} 14... Bb5 {[%clk 0:02:14]} 15. Qe3 {[%clk 0:00:47.4]}
15... Nd7 {[%clk 0:02:03.7]} 16. g6 {[%clk 0:00:47.1]} 16... hxg6 {[%clk
0:02:00.9]} 17. Nb6 {[%clk 0:00:47]} 17... Nxb6 {[%clk 0:01:53]} 18. Bxb6 {[%clk
0:00:47.9]} 18... Bg5 {[%clk 0:01:51]} 19. f4 {[%clk 0:00:48.1]} 19... Bxf4
{[%clk 0:01:49.1]} 20. Qxf4 {[%clk 0:00:48.5]} 20... Qxb6 {[%clk 0:01:49.2]} 21.
h4 {[%clk 0:00:47.5]} 21... Qc5 {[%clk 0:01:42.9]} 22. Rhg1 {[%clk 0:00:28.5]}
22... Qe5 {[%clk 0:01:38.5]} 23. Qf2 {[%clk 0:00:21.4]} 23... a5 {[%clk
0:01:35]} 24. Rg5 {[%clk 0:00:19.5]} 24... Qxe4 {[%clk 0:01:28.6]} 25. h5 {[%clk
0:00:17.3]} 25... d5 {[%clk 0:01:21.7]} 26. Rdg1 {[%clk 0:00:13.3]} 26... a4
{[%clk 0:01:15.4]} 27. hxg6 {[%clk 0:00:13]} 27... fxg6 {[%clk 0:01:05.4]} 28.
Bxd5 {[%clk 0:00:10.1]} 28... exd5 {[%clk 0:00:55.9]} 29. Qd2 {[%clk 0:00:09.5]}
29... Qf4 {[%clk 0:00:52.2]} 30. Rxd5 {[%clk 0:00:07.7]} 30... Qf1+ {[%clk
0:00:42.2]} 31. Qd1 {[%clk 0:00:07.5]} 31... Qxd1+ {[%clk 0:00:41.5]} 32. Rgxd1
{[%clk 0:00:08.4]} 32... Bc4 {[%clk 0:00:39.8]} 33. R5d4 {[%clk 0:00:08.5]}
33... Rfc8 {[%clk 0:00:37.2]} 34. Kb1 {[%clk 0:00:08.7]} 34... b3 {[%clk
0:00:35.6]} 35. cxb3 {[%clk 0:00:08.7]} 35... axb3 {[%clk 0:00:35.9]} 36. a3
{[%clk 0:00:09.3]} 36... Be6 {[%clk 0:00:35.3]} 37. Rd6 {[%clk 0:00:08.6]} 37...
Bf5+ {[%clk 0:00:35.2]} 38. Ka1 {[%clk 0:00:09.3]} 38... Kf7 {[%clk 0:00:34.7]}
39. R6d4 {[%clk 0:00:08.5]} 39... Kf6 {[%clk 0:00:33.7]} 40. Rb4 {[%clk
0:00:08.6]} 40... Bc2 {[%clk 0:00:32.4]} 41. Rf1+ {[%clk 0:00:08.8]} 41... Ke7
{[%clk 0:00:31.9]} 42. Re1+ {[%clk 0:00:08.9]} 42... Kd6 {[%clk 0:00:31.8]} 43.
Rb7 {[%clk 0:00:08.7]} 43... Rc7 {[%clk 0:00:27.1]} 44. Rb6+ {[%clk 0:00:09]}
44... Kc5 {[%clk 0:00:24.9]} 45. Rb4 {[%clk 0:00:08.9]} 45... Rd8 {[%clk
0:00:20.5]} 46. Rc1 {[%clk 0:00:07.9]} 46... Rcd7 {[%clk 0:00:18.7]} 47. Rxb3
{[%clk 0:00:07.4]} 47... Rd2 {[%clk 0:00:13.8]} 48. Rc3+ {[%clk 0:00:07.6]}
48... Kb5 {[%clk 0:00:13.8]} 49. R3xc2 {[%clk 0:00:07.8]} 49... Rxc2 {[%clk
0:00:13.5]} 50. Rxc2 {[%clk 0:00:08.7]} 50... Rd6 {[%clk 0:00:12.5]} 51. Rg2
{[%clk 0:00:08.1]} 51... Kc5 {[%clk 0:00:10.2]} 52. Ka2 {[%clk 0:00:08.1]} 52...
Kd5 {[%clk 0:00:08.2]} 53. b4 {[%clk 0:00:07.1]} 53... Ke4 {[%clk 0:00:08]} 54.
Kb3 {[%clk 0:00:06.8]} 54... Kf4 {[%clk 0:00:08.1]} 55. Rg1 {[%clk 0:00:05.4]}
55... g5 {[%clk 0:00:08.4]} 56. b5 {[%clk 0:00:05.1]} 56... g4 {[%clk 0:00:08]}
57. Rf1+ {[%clk 0:00:05.1]} 57... Ke3 {[%clk 0:00:07]} 58. Rg1 {[%clk
0:00:04.4]} 58... Kf3 {[%clk 0:00:06.1]} 59. a4 {[%clk 0:00:04.4]} 59... g3
{[%clk 0:00:06.4]} 60. a5 {[%clk 0:00:04.2]} 60... g2 {[%clk 0:00:07]} 61. Kb4
{[%clk 0:00:03.5]} 61... Kf2 {[%clk 0:00:05.5]} 62. Rxg2+ {[%clk 0:00:03.5]}
62... Kxg2 {[%clk 0:00:05.8]} 63. Kc5 {[%clk 0:00:03.7]} 63... Rd1 {[%clk
0:00:05.7]} 64. b6 {[%clk 0:00:02.7]} 64... Rc1+ {[%clk 0:00:05.4]} 65. Kb5
{[%clk 0:00:02.1]} 65... Kf2 {[%clk 0:00:04.5]} 66. a6 {[%clk 0:00:01.3]} 66...
Rb1+ {[%clk 0:00:04]} 67. Kc6 {[%clk 0:00:01.6]} 67... Rc1+ {[%clk 0:00:04.3]}
68. Kb7 {[%clk 0:00:01.9]} 68... g5 {[%clk 0:00:03.9]} 69. a7 {[%clk 0:00:02.3]}
69... Ra1 {[%clk 0:00:03.4]} 70. a8=Q {[%clk 0:00:02.7]} 70... Rxa8 {[%clk
0:00:03.1]} 71. Kxa8 {[%clk 0:00:03.3]} 71... g4 {[%clk 0:00:04]} 72. b7 {[%clk
0:00:03.9]} 72... g3 {[%clk 0:00:04.6]} 73. b8=Q {[%clk 0:00:04.2]} 73... g2
{[%clk 0:00:05.3]} 74. Qb6+ {[%clk 0:00:04.8]} 74... Kf1 {[%clk 0:00:05.6]} 75.
Qf6+ {[%clk 0:00:05.4]} 75... Kg1 {[%clk 0:00:05.6]} 76. Qg6 {[%clk 0:00:06.3]}
76... Kh2 {[%clk 0:00:05.8]} 77. Qh5+ {[%clk 0:00:06.4]} 77... Kg1 {[%clk
0:00:06.1]} 78. Qg4 {[%clk 0:00:06.1]} 78... Kf2 {[%clk 0:00:06.3]} 79. Qf4+
{[%clk 0:00:06.4]} 79... Ke2 {[%clk 0:00:06.7]} 80. Qg3 {[%clk 0:00:06.5]} 80...
Kf1 {[%clk 0:00:07.2]} 81. Qf3+ {[%clk 0:00:07.1]} 81... Kg1 {[%clk 0:00:07.6]}
82. Kb7 {[%clk 0:00:07.4]} 82... Kh1 {[%clk 0:00:07.8]} 83. Qh5+ {[%clk
0:00:08.1]} 83... Kg1 {[%clk 0:00:07.8]} 84. Kc6 {[%clk 0:00:07.8]} 84... Kf1
{[%clk 0:00:08.1]} 85. Qf5+ {[%clk 0:00:08.1]} 85... Ke2 {[%clk 0:00:07.8]} 86.
Qg4+ {[%clk 0:00:08.4]} 86... Kf2 {[%clk 0:00:07.9]} 87. Qf4+ {[%clk 0:00:09]}
87... Ke2 {[%clk 0:00:08.2]} 88. Qg3 {[%clk 0:00:08.9]} 88... Kf1 {[%clk
0:00:08.4]} 89. Qf3+ {[%clk 0:00:09.2]} 89... Kg1 {[%clk 0:00:08.4]} 90. Kd5
{[%clk 0:00:09.8]} 90... Kh2 {[%clk 0:00:09]} 91. Qh5+ {[%clk 0:00:09.9]} 91...
Kg3 {[%clk 0:00:08.8]} 92. Qg5+ {[%clk 0:00:09.7]} 92... Kf3 {[%clk 0:00:09.2]}
93. Kd4 {[%clk 0:00:09.8]} 93... Kf2 {[%clk 0:00:08.8]} 94. Qf4+ {[%clk
0:00:09.9]} 94... Ke1 {[%clk 0:00:08.6]} 95. Qg3+ {[%clk 0:00:09.3]} 95... Kf1
{[%clk 0:00:09]} 96. Qf3+ {[%clk 0:00:09.8]} 96... Kg1 {[%clk 0:00:09.3]} 97.
Ke3 {[%clk 0:00:10]} 97... Kh2 {[%clk 0:00:09.7]} 98. Qh5+ {[%clk 0:00:09.9]}
98... Kg1 {[%clk 0:00:09.9]} 99. Qh4 {[%clk 0:00:09.9]} 99... Kf1 {[%clk
0:00:10.7]} 100. Qf2# {[%clk 0:00:10.2]} 1-0